bitfinex/quotes_BTCUSD_20250326
["timestamp","ask_amount","ask_price","bid_price","bid_amount"]
[1743018664662,0.27962359,86832.0,86831.0,0.0140413]
[1743018664879,0.67068741,86832.0,86831.0,0.0100413]
[1743018665078,0.74998741,86832.0,86831.0,0.0100413]
[1743018665308,0.76802878,86832.0,86831.0,0.0100413]
[1743018665925,0.81362878,86832.0,86831.0,3e-07]
[1743018666560,0.83178729,86832.0,86831.0,3e-07]
[1743018667614,0.83478729,86832.0,86831.0,3e-07]
[1743018667767,0.96414729,86832.0,86831.0,3e-07]
[1743018667979,0.96914729,86832.0,86831.0,3e-07]
[1743018668178,0.81362878,86832.0,86831.0,3e-07]
[1743018668425,0.95294878,86832.0,86831.0,3e-07]
[1743018668624,0.95594878,86832.0,86831.0,3e-07]
[1743018668833,0.95294878,86832.0,86831.0,3e-07]
[1743018669206,0.82262878,86832.0,86831.0,3e-07]
[1743018669411,0.27900892,86832.0,86831.0,3e-07]
[1743018669614,0.26905577,86832.0,86831.0,3e-07]
[1743018669775,0.56905577,86832.0,86831.0,3e-07]
[1743018670407,0.66973498,86832.0,86831.0,3e-07]
[1743018670809,0.66473498,86832.0,86831.0,3e-07]
[1743018671008,0.77899262,86832.0,86831.0,3e-07]
[1743018671242,0.78099262,86832.0,86831.0,3e-07]
[1743018671452,0.77699262,86832.0,86831.0,3e-07]
[1743018671855,0.78199262,86832.0,86831.0,3e-07]
[1743018672063,0.77999262,86832.0,86831.0,3e-07]
[1743018672457,0.241929,86802.0,86801.0,0.0003388]
[1743018672660,0.49395341,86802.0,86801.0,0.00038019]
[1743018672885,0.33498297,86802.0,86801.0,0.00038019]
[1743018673055,0.376409,86802.0,86801.0,0.00038019]
[1743018673277,0.241929,86802.0,86801.0,0.00038019]
[1743018674126,0.244929,86802.0,86801.0,0.00038019]
[1743018674451,0.241929,86802.0,86801.0,0.00038019]
[1743018674869,0.244929,86802.0,86801.0,0.00138019]
[1743018675062,0.241929,86802.0,86801.0,0.00138019]
[1743018676972,0.43060047,86802.0,86801.0,0.00138019]
[1743018677380,0.44864724,86802.0,86801.0,0.00138019]
[1743018678838,0.25302974,86802.0,86801.0,0.00138019]
[1743018679816,0.26294974,86802.0,86801.0,0.00138019]
[1743018680643,0.39702974,86802.0,86801.0,0.00138019]
[1743018681370,0.16989577,86802.0,86801.0,0.00138019]
[1743018682839,0.151849,86802.0,86801.0,0.00138019]
[1743018684190,0.151849,86802.0,86801.0,0.01138019]
[1743018687246,0.17221341,86802.0,86801.0,0.01138019]
[1743018687419,0.16989553,86802.0,86801.0,0.01138019]
[1743018688919,0.17221341,86802.0,86801.0,0.01138019]
[1743018689134,0.16989553,86802.0,86801.0,0.01138019]
[1743018692418,0.16989553,86802.0,86801.0,0.01038019]
[1743018692774,0.151849,86802.0,86801.0,0.01038019]
[1743018693099,0.011519,86811.0,86803.0,0.01454085]
[1743018693304,0.241859,86829.0,86825.0,0.230347]
[1743018693549,0.241859,86829.0,86820.0,0.01184149]
[1743018693550,0.230352,86824.0,86820.0,0.01184149]
[1743018693767,0.230353,86823.0,86820.0,0.25371849]
[1743018693939,0.011517,86825.0,86820.0,0.01184149]
[1743018694085,0.230356,86822.0,86821.0,0.01184149]
[1743018694481,0.011517,86825.0,86821.0,0.01184149]
[1743018694609,0.24187,86825.0,86824.0,0.01184149]
[1743018696229,0.2599125,86825.0,86824.0,0.01184149]
[1743018697422,0.0180425,86825.0,86824.0,0.26825034]
[1743018697636,0.0180425,86825.0,86824.0,0.38250798]
[1743018698020,0.0180425,86825.0,86824.0,0.46190798]
[1743018698415,0.0180425,86825.0,86824.0,1.17840798]
[1743018699056,0.018212,86825.0,86824.0,1.17840798]
[1743018699496,0.018212,86825.0,86824.0,0.63653998]
[1743018699704,0.018212,86825.0,86824.0,0.78157698]
[1743018700324,0.018212,86825.0,86824.0,0.78257698]
[1743018700567,0.018212,86825.0,86824.0,0.83688003]
[1743018700736,0.018212,86825.0,86824.0,0.78157698]
[1743018700974,0.019212,86825.0,86824.0,0.78257698]
[1743018701313,0.020212,86825.0,86824.0,0.78257698]
[1743018702432,0.020212,86825.0,86824.0,0.69165998]
[1743018702793,0.0021695,86825.0,86824.0,0.70317698]
[1743018703111,0.0021695,86825.0,86824.0,0.56965698]
[1743018703307,0.0021695,86825.0,86824.0,0.55813998]
[1743018703472,0.0021695,86825.0,86824.0,0.44388234]
[1743018703829,0.15498868,86825.0,86824.0,0.001]
[1743018704010,0.1675264,86825.0,86824.0,0.001]
[1743018704389,0.4665264,86825.0,86824.0,0.001]
[1743018704793,0.01152,86802.0,86801.0,0.02222168]
[1743018704988,0.01152,86802.0,86801.0,0.01038019]
[1743018705178,0.01383788,86802.0,86801.0,0.01038019]
[1743018705378,0.01152,86802.0,86801.0,0.01038019]
[1743018706379,0.01383788,86802.0,86801.0,0.01038019]
[1743018706591,0.01152,86802.0,86801.0,0.01038019]
[1743018706790,0.51468707,86802.0,86801.0,0.01038019]
[1743018707746,0.40457397,86802.0,86801.0,0.01038019]
[1743018707952,0.40457397,86802.0,86801.0,1.9e-07]
[1743018708173,0.42262148,86802.0,86801.0,1.9e-07]
[1743018708690,0.50142148,86802.0,86801.0,1.9e-07]
[1743018710335,0.54822148,86802.0,86801.0,1.9e-07]
[1743018710566,0.66247912,86802.0,86801.0,1.9e-07]
[1743018711204,0.66947912,86802.0,86801.0,1.9e-07]
[1743018711405,0.66747912,86802.0,86801.0,1.9e-07]
[1743018711786,0.67147912,86802.0,86801.0,1.9e-07]
[1743018712503,0.55722148,86802.0,86801.0,1.9e-07]
[1743018712713,0.69122148,86802.0,86801.0,1.9e-07]
[1743018712930,0.67317397,86802.0,86801.0,1.9e-07]
[1743018713690,0.67305397,86802.0,86801.0,1.9e-07]
[1743018714314,0.59425397,86802.0,86801.0,1.9e-07]
[1743018714530,0.59887397,86802.0,86801.0,1.9e-07]
[1743018715045,0.70413161,86802.0,86801.0,1.9e-07]
[1743018715403,0.01614,86802.0,86801.0,1.9e-07]
[1743018715609,0.011519,86806.0,86801.0,1.9e-07]
[1743018715610,0.230384,86812.0,86811.0,0.01184149]
[1743018715818,0.241903,86812.0,86811.0,0.01184149]
[1743018716193,0.0001695,86825.0,86813.0,0.02036049]
[1743018716397,0.241895,86815.0,86813.0,0.02338234]
[1743018716559,0.241899,86813.0,86812.0,0.00884149]
[1743018716761,0.241899,86813.0,86793.0,0.0754008]
[1743018716762,0.241929,86802.0,86801.0,0.00884168]
[1743018716964,0.230404,86804.0,86803.0,0.00884149]
[1743018717287,0.241924,86804.0,86803.0,0.00884149]
[1743018718052,0.25996895,86804.0,86803.0,0.00884149]
[1743018719100,0.25996895,86804.0,86801.0,1.9e-07]
[1743018719101,0.241926,86803.0,86802.0,0.00884149]
[1743018719681,0.01804495,86804.0,86803.0,0.00884149]
[1743018719956,0.01804495,86804.0,86803.0,0.26530834]
[1743018720950,0.25996895,86804.0,86803.0,0.02338234]
[1743018721184,0.25996895,86804.0,86803.0,0.01184149]
[1743018721655,0.35853974,86804.0,86803.0,0.006]
[1743018721857,0.45146099,86804.0,86803.0,0.006]
[1743018722436,0.241929,86802.0,86801.0,1.9e-07]
[1743018723036,0.33498297,86802.0,86801.0,1.9e-07]
[1743018723582,0.241929,86802.0,86801.0,0.00300019]
[1743018724103,0.26339026,86802.0,86801.0,1.9e-07]
[1743018724290,0.37458879,86802.0,86801.0,1.9e-07]
[1743018724430,0.26539026,86802.0,86801.0,1.9e-07]
[1743018724630,0.26739026,86802.0,86801.0,1.9e-07]
[1743018725167,0.26539026,86802.0,86801.0,1.9e-07]
[1743018725750,0.26339026,86802.0,86801.0,1.9e-07]
[1743018725949,0.28143729,86802.0,86801.0,0.00100019]
[1743018726356,0.39444052,86802.0,86801.0,0.00100019]
[1743018727473,0.28143729,86802.0,86801.0,0.00100019]
[1743018728018,0.31578505,86802.0,86801.0,0.00100019]
[1743018728219,0.40883902,86802.0,86801.0,0.00100019]
[1743018728903,0.40883902,86802.0,86801.0,1.9e-07]
[1743018728904,0.70883902,86802.0,86801.0,1.9e-07]
[1743018729104,0.79153902,86802.0,86801.0,1.9e-07]
[1743018729231,0.90579666,86802.0,86801.0,1.9e-07]
[1743018729878,0.90841666,86802.0,86801.0,1.9e-07]
[1743018730415,0.90841666,86802.0,86786.0,0.0003384]
[1743018730416,0.541971,86787.0,86786.0,3.9e-07]
[1743018730626,0.77034056,86787.0,86786.0,4.8e-07]
[1743018730836,0.794831,86787.0,86786.0,4.8e-07]
[1743018731227,0.86869244,86787.0,86786.0,4.8e-07]
[1743018731831,0.84883346,86787.0,86786.0,4.8e-07]
[1743018732089,0.85283346,86787.0,86786.0,4.8e-07]
[1743018732219,0.85878365,86787.0,86786.0,4.8e-07]
[1743018732623,0.82943589,86787.0,86786.0,4.8e-07]
[1743018733502,0.69511589,86787.0,86786.0,4.8e-07]
[1743018733709,0.59611614,86787.0,86786.0,4.8e-07]
[1743018734963,0.59111614,86787.0,86786.0,4.8e-07]
[1743018735172,0.6205965,86787.0,86786.0,4.8e-07]
[1743018735304,0.6235965,86787.0,86786.0,4.8e-07]
[1743018735519,0.6265965,86787.0,86786.0,4.8e-07]
[1743018735718,0.74085414,86787.0,86786.0,4.8e-07]
[1743018735956,0.73485414,86787.0,86786.0,0.00033928]
[1743018736562,0.63964804,86787.0,86786.0,0.00033928]
[1743018736874,0.60516768,86787.0,86786.0,0.00033928]
[1743018737426,0.60716768,86787.0,86786.0,0.00033928]
[1743018737872,0.5844838,86787.0,86786.0,0.00033928]
[1743018740062,0.2729618,86787.0,86786.0,0.01033928]
[1743018740285,0.2844838,86787.0,86786.0,0.03372162]
[1743018740893,0.2844838,86787.0,86786.0,0.01918077]
[1743018741103,0.38552038,86787.0,86786.0,0.01033928]
[1743018741475,0.38552038,86787.0,86786.0,0.01918077]
[1743018741917,0.38452038,86787.0,86786.0,0.01918077]
[1743018742133,0.2814838,86787.0,86786.0,0.01918077]
[1743018742338,0.2814838,86787.0,86786.0,0.01033928]
[1743018742678,0.26343226,86787.0,86786.0,0.01033928]
[1743018743498,0.39743226,86787.0,86786.0,0.01033928]
[1743018743698,0.69743226,86787.0,86786.0,0.01033928]
[1743018744117,0.8116899,86787.0,86786.0,0.01033928]
[1743018744313,0.90573946,86787.0,86786.0,0.01033928]
[1743018745136,0.90573946,86787.0,86786.0,2.8e-07]
[1743018745636,0.91458146,86787.0,86786.0,2.8e-07]
[1743018746515,0.91758146,86787.0,86786.0,2.8e-07]
[1743018746647,0.92058146,86787.0,86786.0,2.8e-07]
[1743018746852,0.91758146,86787.0,86786.0,2.8e-07]
[1743018747420,0.93963427,86787.0,86786.0,2.8e-07]
[1743018747877,0.93663427,86787.0,86786.0,2.8e-07]
[1743018748284,0.94163427,86787.0,86786.0,7.8e-07]
[1743018748518,0.94197327,86787.0,86786.0,7.8e-07]
[1743018750123,0.80397327,86787.0,86786.0,7.8e-07]
[1743018750370,0.61832223,86787.0,86786.0,7.8e-07]
[1743018750627,0.61448023,86787.0,86786.0,7.8e-07]
[1743018750857,0.31448023,86787.0,86786.0,7.8e-07]
[1743018751098,0.27530207,86787.0,86786.0,7.8e-07]
[1743018751301,0.04985307,86787.0,86786.0,0.02338312]
[1743018751436,0.04857307,86787.0,86786.0,0.02338312]
[1743018751834,0.04357307,86787.0,86786.0,0.02338312]
[1743018752171,0.27202207,86787.0,86786.0,0.03338312]
[1743018752367,0.04157307,86787.0,86786.0,0.04490512]
[1743018752567,0.02552026,86787.0,86786.0,0.27535612]
[1743018752789,0.02052026,86787.0,86786.0,0.56413229]
[1743018753016,0.02052026,86787.0,86786.0,0.51821376]
[1743018753971,0.02052026,86787.0,86786.0,0.93471376]
[1743018754407,0.02052026,86787.0,86786.0,1.06867376]
[1743018755278,0.000339,86787.0,86786.0,1.06867376]
[1743018755483,0.000339,86787.0,86786.0,1.1829314]
[1743018755905,0.001339,86787.0,86786.0,1.4829314]
[1743018756103,0.01938549,86787.0,86786.0,1.4829314]
[1743018756310,0.01838549,86787.0,86786.0,1.4829314]
[1743018756744,0.01938549,86787.0,86786.0,1.4829314]
[1743018757121,0.01838549,86787.0,86786.0,1.4829314]
[1743018757343,0.01938549,86787.0,86786.0,1.4829314]
[1743018757783,0.02038549,86787.0,86786.0,1.4829314]
[1743018758390,4.9e-07,86787.0,86786.0,1.4829314]
[1743018758552,0.0001694,86814.0,86813.0,0.34498134]
[1743018758753,0.0001694,86814.0,86813.0,0.67677883]
[1743018759162,0.0001694,86814.0,86813.0,0.67577883]
[1743018759742,0.0001694,86814.0,86813.0,0.13776434]
[1743018760258,0.01821195,86814.0,86813.0,0.13776434]
[1743018760823,0.01821195,86814.0,86813.0,0.14928334]
[1743018760981,0.01921195,86814.0,86813.0,0.15158683]
[1743018761201,0.01921195,86814.0,86813.0,0.14928334]
[1743018761378,0.01921195,86814.0,86813.0,0.26354098]
[1743018761578,0.01921195,86814.0,86813.0,0.13776434]
[1743018762008,0.01921195,86814.0,86813.0,0.00012436]
[1743018762009,0.03072995,86814.0,86813.0,0.00012436]
[1743018762712,0.01500528,86814.0,86813.0,0.00012436]
[1743018762913,0.10726301,86814.0,86813.0,0.00012436]
[1743018763122,0.10494513,86814.0,86813.0,0.00012436]
[1743018763299,0.10494513,86814.0,86813.0,0.00212436]
[1743018763753,0.10494513,86814.0,86813.0,0.00012436]
[1743018763949,0.10394513,86814.0,86813.0,0.00212436]
[1743018764556,0.10626301,86814.0,86813.0,0.00212436]
[1743018764803,0.12774064,86814.0,86813.0,0.00212436]
[1743018765002,0.12542276,86814.0,86813.0,0.00212436]
[1743018765221,0.12642276,86814.0,86813.0,0.00212436]
[1743018765504,0.35679976,86814.0,86813.0,0.00212436]
[1743018765716,0.35579976,86814.0,86813.0,0.00012436]
[1743018766044,0.35879976,86814.0,86813.0,0.00012436]
[1743018766246,0.35679976,86814.0,86813.0,0.00012436]
[1743018766581,0.35879976,86814.0,86813.0,0.00012436]
[1743018766805,0.39994203,86814.0,86813.0,0.00012436]
[1743018767119,0.41798759,86814.0,86813.0,0.00012436]
[1743018767649,0.28458759,86814.0,86813.0,0.00012436]
[1743018767858,0.04269259,86814.0,86813.0,0.2654057]
[1743018768057,0.04269259,86814.0,86813.0,0.41605771]
[1743018768521,0.02121496,86814.0,86813.0,0.37966334]
[1743018768970,0.02973296,86814.0,86813.0,0.13776434]
[1743018769083,0.26010996,86814.0,86813.0,0.0235067]
[1743018769299,0.26110996,86814.0,86813.0,0.0275067]
[1743018769498,0.01921496,86814.0,86813.0,0.0275067]
[1743018769709,0.26110996,86814.0,86813.0,0.0275067]
[1743018770096,0.01921496,86814.0,86813.0,0.2578867]
[1743018770555,0.01821496,86814.0,86813.0,0.0275067]
[1743018770755,0.01921496,86814.0,86813.0,0.2694057]
[1743018771381,0.01821496,86814.0,86813.0,0.2694057]
[1743018771789,0.01821496,86814.0,86813.0,0.2697445]
[1743018772188,0.01821496,86814.0,86813.0,0.2657445]
[1743018772838,0.0001694,86814.0,86813.0,0.2657445]
[1743018773634,0.0001694,86814.0,86813.0,0.2687445]
[1743018774184,0.0001694,86814.0,86813.0,0.38300214]
[1743018774690,0.0001694,86814.0,86813.0,0.37148314]
[1743018775139,0.2305464,86814.0,86813.0,0.14110314]
[1743018775461,0.2420644,86814.0,86813.0,0.14110314]
[1743018775631,0.2305464,86814.0,86813.0,0.14110314]
[1743018775833,0.0001694,86814.0,86813.0,0.14110314]
[1743018776035,0.0001694,86814.0,86813.0,0.37148314]
[1743018776501,0.0001694,86814.0,86813.0,0.14110314]
[1743018777066,0.01821211,86814.0,86813.0,0.14110314]
[1743018777676,0.26010711,86814.0,86813.0,0.0268455]
[1743018777871,0.26010711,86814.0,86813.0,0.01800401]
[1743018778068,0.26010711,86814.0,86813.0,0.0268455]
[1743018778312,0.26010711,86814.0,86813.0,0.01800401]
[1743018778517,0.28160164,86814.0,86813.0,0.01800401]
[1743018778865,0.28160164,86814.0,86813.0,0.00346316]
[1743018779076,0.28160164,86814.0,86813.0,0.00930465]
[1743018779420,0.28160164,86814.0,86813.0,0.01230465]
[1743018782718,0.26355893,86814.0,86813.0,0.01230465]
[1743018783550,0.75589075,86814.0,86813.0,0.00346316]
[1743018783745,0.83269075,86814.0,86813.0,0.00346316]
[1743018784604,0.83269075,86814.0,86786.0,0.01000078]
[1743018784605,0.59079575,86814.0,86786.0,0.01000078]
[1743018784729,0.241971,86787.0,86786.0,0.01896659]
[1743018785128,0.26346553,86787.0,86786.0,0.01896659]
[1743018786177,0.26346553,86787.0,86786.0,0.0101251]
[1743018786572,0.26346553,86787.0,86786.0,0.02196659]
[1743018786770,0.02149453,86787.0,86786.0,0.03650744]
[1743018787190,0.26346553,86787.0,86786.0,0.03650744]
[1743018787960,0.26346553,86787.0,86786.0,0.03350744]
[1743018790310,0.30213952,86787.0,86786.0,0.03350744]
[1743018790519,0.30213952,86787.0,86786.0,0.0101251]
[1743018790724,0.26346553,86787.0,86786.0,0.0096251]
[1743018791059,0.26346553,86787.0,86786.0,0.01846659]
[1743018792349,0.29793859,86787.0,86786.0,0.01846659]
[1743018793451,0.26346553,86787.0,86786.0,0.03300744]
[1743018794876,0.02149453,86787.0,86786.0,0.27498044]
[1743018795289,0.25194353,86787.0,86786.0,0.03300744]
[1743018795706,0.26346553,86787.0,86786.0,0.03300744]
[1743018796294,0.26346553,86787.0,86786.0,0.03317684]
[1743018796801,0.25194353,86787.0,86786.0,0.03317684]
[1743018797249,0.02149453,86787.0,86786.0,0.03317684]
[1743018797428,0.25194353,86787.0,86786.0,0.03317684]
[1743018797583,0.02149453,86787.0,86786.0,0.03317684]
[1743018797992,0.25194353,86787.0,86786.0,0.03317684]
[1743018798377,0.26346553,86787.0,86786.0,0.03317684]
[1743018800304,0.02149453,86787.0,86786.0,0.03317684]
[1743018800505,0.25194353,86787.0,86786.0,0.03317684]
[1743018800924,0.02149453,86787.0,86786.0,0.03317684]
[1743018801131,0.02149453,86787.0,86786.0,0.26362784]
[1743018801393,0.02149453,86787.0,86786.0,0.03317684]
[1743018801563,0.25194353,86787.0,86786.0,0.03317684]
[1743018801778,0.02149453,86787.0,86786.0,0.26362784]
[1743018801974,0.25194353,86787.0,86786.0,0.03317684]
[1743018802907,0.02149453,86787.0,86786.0,0.03317684]
[1743018804024,0.02149453,86787.0,86786.0,0.26362784]
[1743018804432,0.02149453,86787.0,86786.0,0.03317684]
[1743018805561,0.02149453,86787.0,86786.0,0.38940748]
[1743018806790,0.02249453,86787.0,86786.0,0.38940748]
[1743018807206,0.02149453,86787.0,86786.0,0.38940748]
[1743018807415,0.02149453,86787.0,86786.0,0.85906401]
[1743018807663,0.02149453,86787.0,86786.0,0.99250401]
[1743018808469,0.02183353,86787.0,86786.0,0.99250401]
[1743018808670,0.02183353,86787.0,86786.0,1.29250401]
[1743018809020,0.02183353,86787.0,86786.0,1.29350401]
[1743018809223,5.3e-07,86787.0,86786.0,1.39081369]
[1743018809391,0.0001694,86814.0,86813.0,0.25074049]
[1743018809646,0.0001694,86814.0,86813.0,0.40691683]
[1743018809859,0.0001694,86814.0,86813.0,0.82241683]
[1743018810066,0.0001694,86814.0,86813.0,0.82141683]
[1743018810470,0.0001694,86814.0,86813.0,0.82041683]
[1743018810672,0.0001694,86814.0,86813.0,0.82054115]
[1743018811498,0.0001694,86814.0,86813.0,0.83492909]
[1743018812708,0.0001694,86814.0,86813.0,0.83292909]
[1743018813521,0.0001694,86814.0,86813.0,0.83892909]
[1743018814068,0.0001694,86814.0,86813.0,0.79701039]
[1743018814267,0.0001694,86814.0,86813.0,0.01396581]
[1743018814268,0.2420644,86814.0,86813.0,0.01396581]
[1743018815456,0.2420644,86814.0,86813.0,0.01196581]
[1743018816046,0.2420644,86814.0,86813.0,0.00696581]
[1743018816244,0.2420644,86814.0,86813.0,0.00796581]
[1743018819090,0.2305464,86814.0,86813.0,0.00796581]
[1743018819212,0.0001694,86814.0,86813.0,0.00796581]
[1743018819418,0.2305464,86814.0,86813.0,0.00813521]
[1743018820121,0.2420644,86814.0,86813.0,0.02267606]
[1743018820343,0.42154136,86814.0,86813.0,0.00229372]
[1743018820545,0.2420644,86814.0,86813.0,0.00813521]
[1743018821370,0.2420644,86814.0,86813.0,0.02267606]
[1743018821798,0.2420644,86814.0,86813.0,0.02167606]
[1743018822242,0.2635722,86814.0,86813.0,0.02167606]
[1743018822622,0.2635722,86814.0,86813.0,0.00613521]
[1743018822825,0.2635722,86814.0,86813.0,0.00029372]
[1743018822826,0.37021582,86814.0,86813.0,0.00029372]
[1743018823341,0.2625722,86814.0,86813.0,0.00029372]
[1743018823544,0.35482993,86814.0,86813.0,0.00029372]
[1743018823773,0.77832993,86814.0,86813.0,7.2e-07]
[1743018824206,0.320871,86787.0,86786.0,0.00967018]
[1743018824438,0.320871,86787.0,86786.0,0.01559317]
[1743018824845,0.3423788,86787.0,86786.0,0.00975168]
[1743018825044,0.3423788,86787.0,86786.0,0.01559317]
[1743018825264,0.2634788,86787.0,86786.0,0.01559317]
[1743018825467,0.0215078,86787.0,86786.0,0.03013402]
[1743018825667,0.03955731,86787.0,86786.0,0.03013402]
[1743018826027,0.03955731,86787.0,86786.0,0.03113402]
[1743018826228,0.0215078,86787.0,86786.0,0.03113402]
[1743018826632,0.0215078,86787.0,86786.0,0.03213402]
[1743018826832,0.0215078,86787.0,86786.0,0.04365602]
[1743018827043,0.24195,86795.0,86794.0,0.00584149]
[1743018827202,0.2696011,86795.0,86794.0,0.00584149]
[1743018827793,0.24195,86795.0,86794.0,0.00584149]
[1743018827973,0.241971,86787.0,86786.0,0.01175168]
[1743018828182,0.241971,86787.0,86786.0,0.01759317]
[1743018828384,0.241971,86787.0,86786.0,0.01175168]
[1743018828563,0.241971,86787.0,86786.0,0.01075168]
[1743018828755,0.241971,86787.0,86786.0,0.01659317]
[1743018828983,0.241971,86787.0,86786.0,0.00975168]
[1743018829731,0.241971,86787.0,86786.0,0.01559317]
[1743018830119,0.2484769,86795.0,86794.0,0.02038234]
[1743018830309,0.0180489,86795.0,86794.0,0.02038234]
[1743018830467,0.0180489,86795.0,86794.0,0.26233334]
[1743018831653,0.0180489,86795.0,86794.0,0.25081234]
[1743018831894,0.0190489,86795.0,86794.0,0.25081234]
[1743018832291,0.0180489,86795.0,86794.0,0.26233334]
[1743018832541,0.23042,86798.0,86795.0,0.24396585]
[1743018832935,0.241937,86799.0,86795.0,0.229425]
[1743018833389,0.241937,86799.0,86796.0,0.01454085]
[1743018833530,0.241937,86799.0,86798.0,0.00584149]
[1743018833737,0.241937,86799.0,86798.0,0.02038234]
[1743018835634,0.25998397,86799.0,86798.0,0.02038234]
[1743018837130,0.25998397,86799.0,86793.0,0.230432]
[1743018837131,0.230427,86796.0,86794.0,0.01454085]
[1743018837766,0.230427,86796.0,86789.0,0.230442]
[1743018837767,0.230449,86787.0,86779.0,0.011523]
[1743018837887,0.230447,86788.0,86785.0,0.230453]
[1743018838099,0.241971,86787.0,86778.0,0.4165]
[1743018838521,0.288471,86787.0,86763.0,0.4165]
[1743018838724,0.38252056,86787.0,86763.0,0.647012]
[1743018838925,0.4967782,86787.0,86763.0,0.4165]
[1743018839129,0.4967782,86787.0,86763.0,0.647011]
[1743018839385,0.4967782,86787.0,86763.0,0.4165]
[1743018839593,0.4967782,86787.0,86760.0,0.0118648]
[1743018839766,0.7977782,86787.0,86760.0,0.2308568]
[1743018840126,0.7977782,86787.0,86760.0,0.0003388]
[1743018840371,0.589471,86787.0,86770.0,0.230489]
[1743018841102,0.588471,86787.0,86770.0,0.230489]
[1743018841314,0.588471,86787.0,86772.0,0.230486]
[1743018841507,0.589471,86787.0,86769.0,0.242019]
[1743018841674,0.589471,86787.0,86769.0,0.230495]
[1743018841861,0.589471,86787.0,86767.0,0.230501]
[1743018842269,0.590471,86787.0,86763.0,0.230512]
[1743018842464,0.68452056,86787.0,86761.0,0.01454085]
[1743018842737,0.8792782,86787.0,86786.0,6.8e-07]
[1743018842887,0.8792782,86787.0,86741.0,0.1023553]
[1743018842888,0.24177529,86749.0,86748.0,0.41203948]
[1743018843100,0.230549,86750.0,86746.0,0.01454085]
[1743018843297,0.230549,86751.0,86748.0,0.00043494]
[1743018843507,0.230539,86753.0,86749.0,0.23055]
[1743018843877,0.230529,86757.0,86750.0,0.011527]
[1743018844259,0.230539,86753.0,86749.0,0.242077]
[1743018844746,0.230542,86752.0,86749.0,0.242077]
[1743018845171,0.230547,86750.0,86748.0,0.00043494]
[1743018845378,0.230545,86751.0,86750.0,0.002]
[1743018845652,0.011527,86752.0,86750.0,0.002]
[1743018845653,0.242074,86752.0,86750.0,0.002]
[1743018845892,0.0180552,86751.0,86749.0,0.230549]
[1743018846100,0.011527,86750.0,86748.0,0.00043494]
[1743018846287,0.011527,86750.0,86749.0,0.005]
[1743018846540,0.011527,86750.0,86749.0,0.003]
[1743018846541,0.2750173,86750.0,86749.0,0.003]
[1743018846777,0.27269942,86750.0,86749.0,0.003]
[1743018847395,0.242077,86749.0,86748.0,0.00043494]
[1743018850222,0.242077,86749.0,86748.0,0.00343494]
[1743018850433,0.2485992,86751.0,86748.0,0.00343494]
[1743018850580,0.23055,86749.0,86748.0,0.00343494]
[1743018850787,0.242077,86749.0,86748.0,0.00343494]
[1743018852549,0.242082,86747.0,86744.0,0.0003388]
[1743018852877,0.242082,86747.0,86744.0,0.000463]
[1743018852878,0.23056,86746.0,86744.0,0.000463]
[1743018853056,0.242088,86745.0,86744.0,0.000463]
[1743018853398,0.23056,86745.0,86744.0,0.000463]
[1743018853521,0.242088,86745.0,86744.0,0.000463]
[1743018853922,0.242088,86745.0,86744.0,0.003463]
[1743018857352,0.02390027,86748.0,86747.0,0.242082]
[1743018857549,0.02390027,86748.0,86746.0,0.230558]
[1743018857749,0.02390027,86748.0,86747.0,0.230555]
[1743018857906,0.02390027,86748.0,86747.0,0.242082]
[1743018858527,0.02390027,86748.0,86746.0,0.230558]
[1743018858757,0.02390027,86748.0,86747.0,0.37088049]
[1743018859801,0.02390027,86748.0,86747.0,0.39846773]
[1743018860209,0.02390027,86748.0,86747.0,0.37088049]
[1743018860606,0.04195474,86748.0,86747.0,0.37088049]
[1743018861162,0.04295474,86748.0,86747.0,0.37088049]
[1743018861572,0.04195474,86748.0,86747.0,0.37088049]
[1743018861977,0.04295474,86748.0,86747.0,0.37088049]
[1743018862340,0.04295474,86748.0,86747.0,0.37388049]
[1743018862765,0.02490027,86748.0,86747.0,0.4381656]
[1743018862966,0.02590027,86748.0,86747.0,0.37388049]
[1743018863667,0.02590027,86748.0,86747.0,0.78591997]
[1743018863876,0.02590027,86748.0,86747.0,0.80885798]
[1743018864538,0.02590027,86748.0,86747.0,1.10885798]
[1743018865296,0.02590027,86748.0,86747.0,1.24229798]
[1743018865499,0.02590027,86748.0,86747.0,1.35655562]
[1743018866210,0.02490027,86748.0,86747.0,1.35355562]
[1743018866397,0.02490027,86748.0,86747.0,1.35955562]
[1743018866585,0.02390027,86748.0,86747.0,1.35955562]
[1743018866735,0.02390027,86748.0,86747.0,1.35355562]
[1743018866935,0.02390027,86748.0,86747.0,1.35955562]
[1743018867141,0.02390027,86748.0,86747.0,1.25129798]
[1743018867595,0.01805382,86756.0,86755.0,0.25660085]
[1743018867761,0.01805382,86756.0,86755.0,0.37085849]
[1743018868797,0.01805382,86756.0,86755.0,0.36448423]
[1743018870489,0.00031159,88527.0,86783.0,0.011522]
[1743018870490,0.20406803,86789.0,86783.0,0.011522]
[1743018870725,0.20406803,86789.0,86786.0,0.24499185]
[1743018870930,0.20406803,86789.0,86786.0,0.37077149]
[1743018871249,0.01838712,86787.0,86786.0,0.37077149]
[1743018871645,0.01882321,86787.0,86786.0,0.38136805]
[1743018872885,0.00077509,86787.0,86786.0,0.38136805]
[1743018873740,0.00077509,86787.0,86786.0,0.39336805]
[1743018874076,0.00077509,86787.0,86786.0,1.09340753]
[1743018874269,0.00077509,86787.0,86786.0,1.09940753]
[1743018875030,0.00077509,86787.0,86786.0,1.10440753]
[1743018875214,0.00077509,86787.0,86786.0,1.09340753]
[1743018875628,0.00077509,86787.0,86786.0,1.21266517]
[1743018876398,0.00077509,86787.0,86786.0,1.21866517]
[1743018876997,0.00077509,86787.0,86786.0,1.20766517]
[1743018877235,0.00077509,86787.0,86786.0,1.21866517]
[1743018878286,0.00077509,86787.0,86786.0,1.24230774]
[1743018879478,0.00077509,86787.0,86786.0,0.81350925]
[1743018879676,0.00077509,86787.0,86786.0,0.8280501]
[1743018879983,0.00077509,86787.0,86786.0,0.81350925]
[1743018880579,0.00077509,86787.0,86786.0,0.8280501]
[1743018881319,0.00077509,86787.0,86786.0,0.8220501]
[1743018881469,0.00077509,86787.0,86786.0,0.93630774]
[1743018881672,0.00077509,86787.0,86786.0,1.23630774]
[1743018882488,0.00077509,86787.0,86786.0,1.26130774]
[1743018882725,0.00077509,86787.0,86786.0,1.34440774]
[1743018882929,0.00077509,86787.0,86786.0,1.34940774]
[1743018883235,0.00077509,86787.0,86786.0,1.34340774]
[1743018883422,0.00077509,86787.0,86786.0,1.39060774]
[1743018883642,0.00077509,86787.0,86786.0,1.39660774]
[1743018884047,9e-08,86787.0,86786.0,1.39660774]
[1743018884251,0.0003388,86813.0,86812.0,0.241901]
[1743018884586,0.0003388,86813.0,86812.0,0.52432737]
[1743018884705,0.0003388,86813.0,86812.0,0.50405949]
[1743018885959,0.0003388,86813.0,86812.0,0.50505949]
[1743018886376,0.01838093,86813.0,86812.0,0.50705949]
[1743018886742,0.01838093,86813.0,86812.0,0.78573888]